bitfinex-derivatives/quotes_SOLF0:USTF0_20260202
["timestamp","ask_amount","ask_price","bid_price","bid_amount"]
[1770002026477,12.86703323,99.549,99.46,8.09748638]
[1770002026977,12.86703323,99.549,99.48,8.09748638]
[1770002027278,21.76759969,99.6,99.502,140.8483]
[1770002027490,12.72199969,99.593,99.51,8.09748638]
[1770002027985,12.72199969,99.591,99.51,8.09748638]
[1770002028577,12.72199969,99.579,99.51,8.09748638]
[1770002028779,12.72199969,99.571,99.49,8.09748638]
[1770002029374,140.7318,99.585,99.49,8.09748638]
[1770002029375,12.68183836,99.566,99.49,8.09748638]
[1770002030083,149.8112,99.563,99.49,8.09748638]
[1770002030484,140.7547,99.569,99.48,8.07877]
[1770002030485,12.68183836,99.561,99.48,8.07877]
[1770002031084,12.69229332,99.554,99.48,8.07877]
[1770002031478,140.7547,99.569,99.48,8.07877]
[1770002031681,12.69229332,99.566,99.48,8.07877]
[1770002032280,12.69229332,99.564,99.48,8.07877]
[1770002032885,12.69229332,99.553,99.48,8.07877]
[1770002033488,12.69229332,99.553,99.464,9.0579]
[1770002033687,140.7751,99.554,99.46,148.98627]
[1770002033688,12.69169161,99.542,99.46,8.07877]
[1770002033890,12.69169161,99.534,99.46,8.07877]
[1770002034790,12.69169161,99.524,99.44,8.07877]
[1770002035291,12.69169161,99.524,99.441,149.994]
[1770002035489,12.69169161,99.524,99.46,8.07877]
[1770002035785,9.051,99.54,99.46,8.07877]
[1770002035991,12.69006188,99.553,99.48,8.07877]
[1770002036193,12.69006188,99.549,99.46,8.07877]
[1770002036585,12.69006188,99.545,99.462,140.9047]
[1770002036889,12.69006188,99.545,99.48,8.07877]
[1770002037085,12.69006188,99.545,99.441,140.934]
[1770002037086,12.70535947,99.525,99.425,140.9572]
[1770002037291,12.70535947,99.523,99.44,8.07877]
[1770002037884,12.70535947,99.546,99.46,8.07877]
[1770002038284,9.0509,99.542,99.46,8.07877]
[1770002038591,140.772,99.556,99.44,8.07877]
[1770002038592,12.70535947,99.529,99.44,8.07877]
[1770002040290,9.0525,99.525,99.444,9.0598]
[1770002040893,21.74914892,99.525,99.444,9.0598]
[1770002041097,9.0511,99.54,99.445,10.04]
[1770002041397,12.75932733,99.553,99.49,8.07877]
[1770002041796,12.75932733,99.499,99.384,18.58450879]
[1770002041995,140.9475,99.432,99.35,8.07877]
[1770002042188,12.75932733,99.443,99.339,141.079]
[1770002042494,12.75932733,99.443,99.37,141.0352]
[1770002042794,12.75932733,99.443,99.37,8.07877]
[1770002043192,12.75932733,99.443,99.359,9.0674]
[1770002043387,12.84589057,99.425,99.36,8.07877]
[1770002043598,12.84589057,99.398,99.301,141.1333]
[1770002043895,140.9829,99.407,99.3,8.07877]
[1770002043896,12.84589057,99.393,99.304,9.0725]
[1770002044087,12.84589057,99.385,99.305,141.1272]
[1770002044491,12.84589057,99.385,99.311,10.04]
[1770002044891,12.84589057,99.385,99.301,141.1334]
[1770002045395,12.84589057,99.385,99.236,180.9]
[1770002045396,153.88375708,99.357,99.27,8.07877]
[1770002045593,141.0441,99.364,99.27,8.07877]
[1770002045594,141.0662,99.349,99.27,8.07877]
[1770002045894,141.0718,99.345,99.27,8.07877]
[1770002046099,12.82895708,99.348,99.27,8.07877]
[1770002046293,12.82895708,99.348,99.261,141.1896]
[1770002046294,12.82895708,99.372,99.29,8.07877]
[1770002046494,12.82895708,99.37,99.29,8.07877]
[1770002046889,12.82895708,99.349,99.26,8.07877]
[1770002047096,12.82895708,99.349,99.276,141.1676]
[1770002047400,12.74469115,99.37,99.276,141.1685]
[1770002047595,150.1038,99.369,99.276,9.0751]
[1770002047790,350.98,99.399,99.26,8.07877]
[1770002047791,12.74473283,99.396,99.32,8.07877]
[1770002047991,12.74473283,99.389,99.32,8.07877]
[1770002048193,12.74473283,99.375,99.3,8.07877]
[1770002048490,141.0433,99.365,99.263,368.94]
[1770002048692,12.74473283,99.364,99.28,8.07877]
[1770002048896,12.74473283,99.349,99.26,8.07877]
[1770002049200,12.72457614,99.376,99.285,141.1552]
[1770002049403,12.72457614,99.402,99.32,8.07877]
[1770002049694,12.72457614,99.402,99.281,141.1613]
[1770002049695,12.72457614,99.355,99.253,141.2016]
[1770002049998,12.72457614,99.408,99.313,141.1163]
[1770002050195,12.72457614,99.395,99.31,8.07877]
[1770002050499,12.72457614,99.375,99.29,8.07877]
[1770002051297,12.73606692,99.366,99.29,8.07877]
[1770002051497,12.73606692,99.39,99.293,141.1436]
[1770002051698,12.73606692,99.378,99.29,8.07877]
[1770002051897,141.0173,99.383,99.29,8.07877]
[1770002051898,12.73606692,99.376,99.29,8.07877]
[1770002052298,12.73606692,99.376,99.291,150.2203]
[1770002052802,12.73606692,99.376,99.31,8.07877]
[1770002053997,12.73606692,99.376,99.3,8.07877]
[1770002054192,12.70820519,99.368,99.3,8.07877]
[1770002054398,9.0675,99.36,99.28,8.07877]
[1770002054694,12.70820519,99.353,99.263,9.0762]
[1770002054896,12.70820519,99.353,99.264,141.1859]
[1770002055297,12.70820519,99.353,99.26,8.07877]
[1770002055298,12.70820519,99.353,99.266,150.258]
[1770002055702,12.70820519,99.353,99.22,30.12]
[1770002055703,12.70508746,99.329,99.232,141.231]
[1770002056001,12.70508746,99.329,99.253,141.2013]
[1770002056199,8.07877,99.37,99.253,141.2013]
[1770002056200,12.70508746,99.353,99.27,149.25557]
[1770002056500,12.70508746,99.371,99.29,8.07877]
[1770002056802,12.70508746,99.339,99.25,8.07877]
[1770002057198,141.0687,99.347,99.25,8.07877]
[1770002057199,12.71025254,99.33,99.25,8.07877]
[1770002058800,12.71025254,99.325,99.25,8.07877]
[1770002059198,12.71025254,99.325,99.222,372.5]
[1770002059199,141.1171,99.313,99.23,8.07877]
[1770002059403,12.6994865,99.302,99.224,141.2425]
[1770002059597,12.6994865,99.3,99.22,8.07877]
[1770002059803,141.1555,99.286,99.195,9.0824]
[1770002059998,12.6994865,99.27,99.18,8.07877]
[1770002060601,141.1828,99.267,99.185,2.77948636]
[1770002060907,12.6994865,99.264,99.185,2.77948636]
[1770002061801,12.74792272,99.237,99.185,2.77948636]
[1770002061999,12.74792272,99.265,99.19,8.07877]
[1770002062199,12.74792272,99.265,99.19,141.2909]
[1770002062505,12.74792272,99.265,99.2,8.07877]
[1770002062703,12.74792272,99.265,99.185,2.77948636]
[1770002063104,141.2288,99.234,99.136,141.3682]
[1770002063308,12.66581855,99.235,99.141,141.3611]
[1770002063603,152.56777537,99.19,99.146,1.38131621]
[1770002063806,11.27607537,99.19,99.1,8.07877]
[1770002064008,11.27607537,99.184,99.1,8.07877]
[1770002064203,11.27607537,99.184,99.081,141.4458]
[1770002064204,11.27607537,99.168,99.071,141.4608]
[1770002064409,11.27607537,99.168,99.081,141.4455]
[1770002064815,11.27607537,99.168,99.071,141.4608]
[1770002065109,141.3131,99.175,99.042,374.14]
[1770002065110,11.27607537,99.155,99.07,8.07877]
[1770002065305,11.27607537,99.155,99.027,141.5239]
[1770002065306,141.3722,99.134,99.036,141.5097]
[1770002065512,11.37852892,99.139,99.06,8.07877]
[1770002065702,11.37852892,99.139,99.049,141.4911]
[1770002065703,11.37852892,99.164,99.08,8.07877]
[1770002065899,11.37852892,99.164,99.049,141.4911]
[1770002065900,11.37852892,99.121,99.05,8.07877]
[1770002066106,141.3883,99.122,98.994,141.5701]
[1770002066107,11.37852892,99.088,99.02,8.07877]
[1770002066409,11.37852892,99.085,98.995,141.5692]
[1770002066606,11.37852892,99.118,99.031,141.518]
[1770002066802,11.37852892,99.105,99.003,141.5573]
[1770002067106,21.41059056,99.14,98.996,1.75673288]
[1770002067107,11.37852892,99.139,99.041,141.5029]
[1770002067312,11.37852892,99.139,99.049,141.4921]
[1770002067508,11.36614486,99.132,99.031,141.5173]
[1770002067715,11.36614486,99.128,99.031,141.5173]
[1770002068012,11.36614486,99.119,99.022,141.53]
[1770002068313,11.36614486,99.119,99.032,141.5163]
[1770002068510,11.36614486,99.111,99.009,141.5496]
[1770002068810,11.36614486,99.105,99.03,141.5185]
[1770002069003,11.36614486,99.13,99.05,141.4908]
[1770002069199,11.36614486,99.13,99.02,21.41059056]
[1770002069200,11.36614486,99.13,99.042,141.5018]
[1770002069400,141.406,99.11,99.02,21.41059056]
[1770002069604,141.3918,99.12,99.021,141.5323]
[1770002069605,11.45126806,99.105,99.021,141.5323]
[1770002069805,11.45126806,99.077,98.983,141.5863]
[1770002070001,11.45126806,99.077,98.973,141.6005]
[1770002070002,11.45126806,99.071,98.979,141.5923]
[1770002070203,141.4771,99.06,98.97,21.41059056]
[1770002070414,141.4632,99.07,98.97,21.41059056]
[1770002070415,11.45126806,99.057,98.983,141.5861]
[1770002070603,11.45126806,99.083,98.992,141.5731]
[1770002070800,11.45126806,99.113,99.027,141.5235]
[1770002071010,11.45126806,99.138,99.058,141.4794]
[1770002071204,11.45126806,99.138,99.06,21.41059056]
[1770002071707,11.45126806,99.138,99.077,141.4515]
[1770002071908,11.55437381,99.16,99.064,141.4697]
[1770002072105,11.55437381,99.145,99.049,141.4921]
[1770002072303,141.3137,99.175,99.023,141.5285]
[1770002072304,11.55437381,99.113,99.023,9.0983]
[1770002072512,11.55437381,99.098,99.002,141.5589]
[1770002072709,11.55437381,99.096,99.003,141.5569]
[1770002072905,141.4532,99.077,99.0,21.41059056]
[1770002073108,11.63243819,99.065,98.968,141.6082]
[1770002073410,11.63243819,99.062,98.978,141.5938]
[1770002073712,141.4133,99.105,98.978,141.5938]
[1770002073713,11.63243819,99.088,99.007,141.5518]
[1770002073916,11.63243819,99.088,98.994,141.5697]
[1770002074309,11.63243819,99.083,98.987,379.9]
[1770002074511,11.63243819,99.083,98.982,141.587]
[1770002074812,141.3948,99.118,98.951,566.5262]
[1770002074813,11.63243819,99.11,99.01,162.95839056]
[1770002075016,11.63243819,99.11,99.018,141.5356]
[1770002075315,11.63243819,99.11,99.02,9.0985]
[1770002075513,11.63243819,99.11,99.023,141.5291]
[1770002075814,11.5863631,99.088,98.983,141.5864]
[1770002076116,11.5863631,99.111,99.014,141.5415]
[1770002076313,11.5863631,99.111,99.033,141.5147]
[1770002076616,141.3326,99.162,99.004,141.5557]
[1770002076617,141.3309,99.163,99.07,21.41059056]
[1770002076816,141.3309,99.163,99.054,141.4843]
[1770002076817,141.3729,99.133,99.04,21.41059056]
[1770002077014,11.5863631,99.129,99.035,141.5113]
[1770002077318,11.63853452,99.155,99.07,141.4621]
[1770002077615,11.63853452,99.155,99.052,141.4882]
[1770002077819,11.63853452,99.155,99.062,141.4735]
[1770002078019,11.63853452,99.155,99.057,141.4805]
[1770002078216,11.63853452,99.155,99.068,141.4653]
[1770002078514,11.63853452,99.155,99.067,141.4666]
[1770002079016,11.63898552,99.196,99.102,141.4166]
[1770002079212,141.323,99.168,99.085,383.4]
[1770002079419,141.323,99.168,99.049,141.4916]
[1770002079420,11.64386571,99.14,99.045,141.4975]
[1770002079613,11.64386571,99.14,99.039,9.0968]
[1770002079614,11.64386571,99.14,99.048,141.4935]
[1770002079814,11.64386571,99.134,99.039,141.5061]
[1770002080014,11.64386571,99.134,99.054,150.5806]
[1770002080215,11.64386571,99.134,99.036,141.5108]
[1770002080420,141.3557,99.145,99.031,141.5173]
[1770002080421,11.64386571,99.128,99.031,141.5173]
[1770002080720,11.64386571,99.128,99.017,141.5375]
[1770002080721,11.64386571,99.115,99.033,141.5145]
[1770002080916,11.64386571,99.129,99.031,141.5171]
[1770002081116,11.60828469,99.112,99.02,21.41059056]
[1770002081312,11.60828469,99.097,99.001,141.561]
[1770002081620,11.60828469,99.093,99.006,9.0998]
[1770002082115,11.60828469,99.093,98.996,141.5677]
[1770002082423,11.60828469,99.079,98.99,21.41059056]
[1770002082721,11.60828469,99.079,99.004,141.5566]
[1770002082916,20.69908469,99.105,99.004,141.5566]
[1770002083116,11.60828469,99.105,99.026,141.5242]
[1770002083324,11.63529919,99.092,99.005,385.28]
[1770002083715,141.4282,99.095,98.967,141.6097]
[1770002083716,141.449,99.08,98.993,9.101]
[1770002084018,11.63529919,99.067,98.981,141.5892]
[1770002084218,11.63529919,99.067,98.98,21.41059056]
[1770002084418,11.63529919,99.067,98.985,141.5836]
[1770002084720,11.63529919,99.067,98.984,141.5853]
[1770002085418,11.63529919,99.067,98.997,9.1006]
[1770002085620,11.63529919,99.067,98.984,141.5853]
[1770002085915,11.63529919,99.067,98.98,21.41059056]
[1770002086112,11.64960122,99.041,98.944,141.6424]
[1770002086312,11.64960122,99.041,98.873,18.2242]
[1770002086313,10.25985804,98.981,98.906,141.697]
[1770002086512,10.25985804,98.981,98.9,8.1748826]
[1770002086720,10.25985804,98.981,98.902,141.7024]
[1770002086920,10.25985804,98.981,98.9,8.1748826]
[1770002087514,10.24379364,98.971,98.882,141.7305]
[1770002087719,10.24379364,98.971,98.88,8.1748826]
[1770002087720,10.24379364,98.971,98.883,141.7297]
[1770002088023,10.24379364,98.971,98.883,150.8408]
[1770002088215,10.24379364,98.971,98.883,9.1111]
[1770002088526,10.24379364,99.04,98.957,141.6235]
[1770002088719,141.5269,99.025,98.94,21.45378117]
[1770002088920,10.24379364,99.024,98.944,141.6426]
[1770002089119,10.24379364,99.024,98.94,21.45378117]
[1770002089324,10.24379364,99.024,98.937,141.6519]
[1770002089619,10.24379364,99.024,98.948,141.6366]
[1770002089823,10.24379364,99.024,98.934,141.6565]
[1770002090019,9.90429798,99.011,98.909,141.6923]
[1770002090224,9.90429798,99.011,98.942,141.6448]
[1770002090522,9.90429798,99.009,98.909,141.6923]
[1770002090723,9.90429798,98.992,98.897,9.1098]
[1770002090921,9.90429798,98.967,98.881,141.7328]
[1770002091218,9.82832746,99.018,98.934,141.6562]
[1770002091624,9.82832746,99.018,98.935,141.6552]
[1770002092021,9.82832746,99.018,98.936,150.7594]
[1770002092222,9.82832746,99.018,98.936,141.6532]
[1770002092417,9.82832746,99.018,98.938,141.6499]
[1770002092725,9.82832746,99.012,98.923,141.6727]
[1770002092928,9.82832746,99.012,98.939,141.6491]
[1770002093117,9.82832746,99.012,98.922,141.6739]
[1770002093321,9.82832746,99.012,98.927,141.6669]
[1770002093625,9.82832746,99.012,98.928,9.107]
[1770002093821,9.77997582,99.002,98.912,141.6873]
[1770002094017,9.77997582,99.002,98.916,141.6825]
[1770002094222,9.77997582,98.999,98.888,391.98]
[1770002094421,9.77997582,98.999,98.88,32.15057877]
[1770002094422,141.4536,99.077,98.983,141.5855]
[1770002094727,141.4739,99.062,98.97,32.15057877]
[1770002095320,141.4495,99.08,98.976,150.6986]
[1770002095524,141.4536,99.077,98.976,150.6986]
[1770002095724,9.0946,99.064,98.976,9.1026]
[1770002096125,150.5665,99.064,98.97,32.15057877]
[1770002096328,4.87897795,99.063,98.972,141.6023]
[1770002096729,4.87897795,99.063,98.999,141.5634]
[1770002096923,4.87897795,99.063,99.003,141.5575]
[1770002097128,4.87897795,99.063,99.003,9.1001]
[1770002097425,4.87897795,99.063,98.973,141.6]
[1770002097625,4.89354632,99.061,98.978,9.1024]
[1770002097829,4.89354632,99.061,98.965,141.6117]
[1770002098227,4.89354632,99.061,98.956,141.6255]
[1770002098228,4.89354632,99.059,98.975,9.1026]
[1770002098532,4.89354632,99.059,98.975,150.7008]
[1770002099133,4.89354632,99.057,98.975,9.1026]
[1770002099441,4.89354632,99.057,98.975,150.7002]
[1770002099636,4.89354632,99.057,98.975,9.1026]
[1770002100441,4.86198047,99.055,98.975,141.5982]
[1770002100735,4.86198047,99.016,98.905,141.6982]
[1770002100936,141.5362,99.019,98.895,141.7121]
[1770002100937,4.86198047,98.985,98.895,141.7121]
[1770002101129,4.86198047,98.985,98.91,141.6905]
[1770002101329,4.86198047,98.985,98.924,9.1074]
[1770002101532,4.86198047,98.985,98.89,141.7188]
[1770002101533,4.81902977,99.025,98.946,141.6384]
[1770002101731,4.81902977,99.047,98.964,141.6134]
[1770002101933,4.81902977,99.047,98.93,141.6625]
[1770002101934,4.81902977,99.03,98.94,141.6484]
[1770002102233,141.5017,99.043,98.92,32.15057877]
[1770002102234,141.5474,99.011,98.92,32.15057877]
[1770002102438,4.81902977,99.01,98.926,9.1072]
[1770002102633,4.81902977,99.008,98.923,141.672]
[1770002102833,4.81902977,99.033,98.953,141.6298]
[1770002103036,544.4044,99.069,98.958,141.6214]
[1770002103037,146.2793218,99.048,98.958,141.6214]
[1770002103228,146.2793218,99.048,98.928,141.6654]
[1770002103229,4.7853218,99.013,98.931,141.6611]
[1770002103433,141.5544,99.006,98.92,32.15057877]
[1770002103633,4.7853218,99.005,98.921,141.6745]
[1770002103838,4.7853218,98.999,98.901,141.703]
[1770002104042,4.7853218,98.996,98.906,9.109]
[1770002104240,4.7853218,98.99,98.906,9.109]
[1770002104436,4.7853218,98.988,98.898,141.7078]
[1770002104634,4.7853218,98.988,98.921,141.6747]
[1770002104936,4.7853218,99.015,98.95,9.105]
[1770002105240,4.8270968,99.047,98.978,141.5932]
[1770002105539,4.8270968,99.047,98.959,141.621]
[1770002105936,4.8270968,99.047,98.979,141.5921]
[1770002106137,4.8270968,99.047,98.981,141.5886]
[1770002106338,4.8270968,99.047,98.959,141.621]
[1770002106339,4.8270968,99.047,98.964,141.613]
[1770002106547,4.8270968,99.028,98.94,141.6474]
[1770002106742,4.8270968,99.028,98.944,141.6424]
[1770002106945,4.8270968,99.028,98.953,9.1046]
[1770002107146,4.8270968,99.028,98.96,141.619]
[1770002107441,4.8270968,99.028,98.955,141.6259]
[1770002107643,141.47,99.065,98.965,141.6118]
[1770002107841,5.02212352,99.064,98.991,141.5752]
[1770002108140,5.02212352,99.097,99.004,150.6564]
[1770002108342,5.02212352,99.07,98.985,141.5828]
[1770002108638,5.02212352,99.07,98.98,32.15057877]
[1770002108844,5.02212352,99.07,98.995,141.5686]
[1770002109044,5.02212352,99.07,98.98,32.15057877]
[1770002109045,5.02212352,99.101,99.019,141.5345]
[1770002109237,5.02212352,99.101,98.999,141.5635]
[1770002109238,9.092,99.092,98.999,141.5635]
[1770002109434,5.03324632,99.076,98.992,9.1011]
[1770002109632,5.03324632,99.076,98.992,150.675]
[1770002110148,5.03324632,99.066,98.983,141.5861]
[1770002110341,5.03324632,99.091,99.009,141.5491]
[1770002110534,5.03324632,99.091,98.98,32.15057877]
[1770002110535,5.03324632,99.091,99.005,141.5544]
[1770002110738,5.03324632,99.091,99.015,9.0989]
[1770002110938,5.03324632,99.091,99.018,141.5355]
[1770002111137,5.04507828,99.077,98.987,141.5805]
[1770002111338,5.04507828,99.071,98.99,141.5765]
[1770002111546,5.04507828,99.067,98.98,32.15057877]
[1770002111742,5.04507828,99.067,98.962,141.6168]
[1770002111743,5.04507828,99.065,98.982,150.6901]
[1770002112039,5.04507828,99.042,98.951,141.6324]
[1770002112236,5.04507828,99.032,98.946,141.6393]
[1770002112441,5.04507828,99.077,98.992,141.5727]
[1770002112636,5.04507828,99.077,98.998,141.5641]
[1770002112840,141.4169,99.102,99.012,9.0992]
[1770002113041,402.96,99.111,99.012,9.0992]
[1770002113042,5.04507828,99.101,99.012,150.644]
[1770002113242,5.04507828,99.101,99.012,141.5448]
[1770002113441,5.04507828,99.101,98.977,18.26209539]
[1770002113442,5.04507828,99.101,99.028,141.5221]
[1770002113644,5.04507828,99.101,99.026,141.5249]
[1770002113944,5.00309891,99.098,99.022,141.5302]
[1770002114150,5.00309891,99.122,99.035,141.5111]
[1770002114446,5.00309891,99.122,99.051,141.4893]
[1770002114645,5.00309891,99.122,99.02,32.15057877]
[1770002114646,5.00309891,99.122,99.033,141.515]
[1770002114843,5.00309891,99.106,99.014,141.5416]
[1770002115143,5.00309891,99.095,99.007,9.0998]
[1770002115344,141.4184,99.101,99.007,9.0998]
[1770002115345,5.00461109,99.092,99.007,9.0998]
[1770002115654,141.3601,99.142,99.047,141.4942]
[1770002115947,5.00461109,99.129,99.058,141.479]
[1770002116148,5.00461109,99.154,99.063,141.4712]
[1770002116349,5.00461109,99.151,99.054,141.4852]
[1770002116543,5.00461109,99.139,99.044,141.4993]
[1770002116850,5.00461109,99.162,99.065,141.4684]
[1770002117141,5.00461109,99.162,99.05,141.491]
[1770002117142,4.96754905,99.155,99.061,9.0947]
[1770002117340,4.96754905,99.147,99.061,9.0947]
[1770002117538,4.96754905,99.117,99.041,141.5032]
[1770002117744,4.96754905,99.117,99.042,9.0965]
[1770002118043,9.0899,99.114,99.022,141.5303]
[1770002118348,4.96754905,99.083,98.992,141.5738]
[1770002118543,4.96754905,99.083,99.003,141.5574]
[1770002118943,4.96754905,99.083,98.984,141.5848]
[1770002119140,9.0937,99.073,98.984,141.5848]
[1770002119340,141.4615,99.071,98.984,9.1018]
[1770002119644,146.42764114,99.052,98.96,141.6195]
[1770002119839,4.93844114,99.051,98.963,141.6149]
[1770002120246,4.93844114,99.051,98.982,150.6899]
[1770002120548,4.93844114,99.031,98.94,141.6475]
[1770002120743,4.93844114,99.031,98.93,32.15057877]
[1770002120744,4.93844114,99.031,98.942,150.7503]
[1770002120948,4.93844114,99.031,98.903,141.7001]
[1770002120949,4.93844114,99.011,98.919,141.6781]
[1770002121249,141.4976,99.046,98.95,9.105]
[1770002121250,4.93844114,99.034,98.95,9.105]
[1770002121447,4.92008602,99.032,98.95,9.105]
[1770002121647,4.92008602,99.032,98.954,141.6279]
[1770002121953,4.92008602,99.032,98.926,141.6671]
[1770002121954,4.92008602,99.058,98.992,141.5729]
[1770002122141,4.92008602,99.058,98.981,141.5885]
[1770002122142,4.92008602,99.058,98.985,141.5834]
[1770002122347,4.92008602,99.058,98.988,9.1015]
[1770002122754,4.92008602,99.087,99.0,141.5613]
[1770002123047,4.92008602,99.077,98.988,141.5795]
[1770002123251,4.88012614,99.059,98.966,141.6108]
[1770002123450,4.88012614,99.059,98.974,141.5987]
[1770002123644,4.88012614,99.059,98.988,9.1014]
[1770002123840,4.88012614,99.059,98.977,141.5951]
[1770002123841,4.88012614,99.059,98.966,141.6108]
[1770002124041,4.88012614,99.044,98.931,141.6602]
[1770002124246,4.88012614,99.044,98.898,402.9]
[1770002124247,4.88012614,99.044,98.975,141.5975]
[1770002124443,4.88012614,99.07,98.975,141.5975]
[1770002124646,4.88012614,99.07,98.986,9.1016]
[1770002124851,4.88012614,99.065,98.986,9.1016]
[1770002125360,4.89424781,99.06,98.972,9.1029]
[1770002125550,4.89424781,99.055,98.972,9.1029]
[1770002125752,13.98974781,99.054,98.972,9.1029]
[1770002126047,4.89424781,99.04,98.957,141.6235]
[1770002126246,4.89424781,99.04,98.949,141.6345]
[1770002126455,4.89424781,99.014,98.93,32.15057877]
[1770002126753,4.89424781,99.014,98.932,141.6589]
[1770002126945,4.89424781,99.014,98.93,32.15057877]
[1770002127344,4.89232395,99.01,98.916,141.6814]
[1770002127546,4.89232395,99.0,98.916,141.682]
[1770002127756,4.89232395,99.029,98.938,141.6504]
[1770002127958,4.89232395,99.029,98.954,141.6282]
[1770002128150,4.89232395,99.018,98.928,141.6655]
[1770002128448,4.89232395,99.015,98.936,9.1062]
[1770002128653,4.89232395,99.015,98.897,141.7093]
[1770002128654,4.89232395,98.993,98.912,141.6877]
[1770002128845,4.89232395,98.993,98.914,141.685]
[1770002129044,4.89232395,98.993,98.922,9.1075]
[1770002129249,4.89232395,98.993,98.922,141.6729]
[1770002129446,4.89232395,98.993,98.904,141.6992]
[1770002129751,4.89232395,98.993,98.907,141.6949]
[1770002129949,4.89232395,98.993,98.901,141.7042]
[1770002130350,4.90539718,98.991,98.916,9.1081]
[1770002130650,4.90539718,98.984,98.89,8.1724413]
[1770002130856,4.90539718,98.982,98.903,9.1093]
[1770002131051,4.90539718,98.982,98.91,8.1724413]
[1770002131247,141.5536,99.007,98.887,9.1108]
[1770002131248,4.94444439,98.967,98.887,9.1108]
[1770002131447,402.98,98.988,98.9,8.1724413]
[1770002131757,4.94444439,98.992,98.934,9.1064]
[1770002131957,4.94444439,98.992,98.92,8.1724413]
[1770002132352,4.94444439,98.986,98.892,18.71611294]
[1770002132553,4.94444439,98.956,98.873,141.7439]
[1770002132748,4.94444439,98.956,98.883,9.1111]
[1770002133057,4.94444439,98.984,98.9,8.1724413]
[1770002133452,4.94444439,98.984,98.92,8.1724413]
[1770002133750,141.5292,99.024,98.915,141.6833]
[1770002133751,4.91158341,99.008,98.94,8.1724413]
[1770002133954,4.91158341,99.034,98.946,141.6385]
[1770002134349,9.099,99.016,98.94,8.1724413]
[1770002134548,4.91158341,99.012,98.94,8.1724413]
[1770002134751,4.91158341,99.039,98.941,141.6469]
[1770002134951,4.91158341,99.039,98.96,8.1724413]
[1770002135149,4.95250633,99.037,98.941,141.6469]
[1770002135347,4.95250633,99.027,98.94,8.1724413]
[1770002135554,4.95250633,99.027,98.947,9.1052]
[1770002135952,9.0981,99.026,98.947,9.1052]
[1770002136149,150.6236,99.026,98.94,8.1724413]
[1770002136348,141.5466,99.012,98.94,8.1724413]
[1770002136554,4.95250633,99.017,98.94,8.1724413]
[1770002137056,146.49980633,99.011,98.928,9.107]
[1770002137257,141.5615,99.001,98.91,8.1724413]
[1770002137555,4.94535387,98.996,98.917,141.6809]
[1770002137876,4.94497978,99.022,98.932,141.6595]
[1770002138057,4.94497978,99.019,98.941,9.1057]
[1770002138657,9.0992,99.014,98.94,8.1724413]
[1770002139053,4.95482257,99.014,98.94,8.1724413]
[1770002139253,141.531,99.023,98.924,141.6703]
[1770002139460,141.5501,99.009,98.92,8.1724413]
[1770002139660,9.1012,98.992,98.92,8.1724413]
[1770002140351,9.1012,98.992,98.921,9.1077]
[1770002140559,9.1001,99.004,98.921,9.1077]
[1770002140857,4.95482257,99.008,98.93,8.1724413]
[1770002141254,4.95482257,99.008,98.943,9.1056]
[1770002141464,4.95794717,99.037,98.951,141.6313]
[1770002141658,4.95794717,99.062,98.99,8.1724413]
[1770002141858,141.4155,99.103,99.0,8.1724413]
[1770002141859,4.95794717,99.084,99.0,8.1724413]
[1770002142358,141.4356,99.089,98.98,8.1724413]
[1770002142359,9.0961,99.047,98.98,8.1724413]
[1770002142557,141.4415,99.085,98.944,141.6419]
[1770002142558,141.5048,99.041,98.97,8.1724413]
[1770002142763,4.95794717,99.04,98.95,8.1724413]
[1770002142959,4.95794717,99.034,98.95,8.1724413]
[1770002143257,141.531,99.023,98.93,8.1724413]
[1770002143458,9.0996,99.01,98.93,8.1724413]
[1770002143665,4.96275516,99.011,98.935,141.6542]
[1770002143866,4.96275516,99.011,98.93,8.1724413]
[1770002144157,9.0995,99.01,98.93,8.1724413]
[1770002144352,4.96275516,99.005,98.93,8.1724413]
[1770002144554,4.96275516,98.998,98.914,141.6853]
[1770002144759,4.96275516,98.995,98.911,9.1086]
[1770002144954,4.96275516,98.995,98.916,141.682]
[1770002145264,4.96275516,98.995,98.92,8.1724413]